[Event "The Elitserien 2024/25: round 1 - 3"]
[Site "Scandic Infra City, Kanalvagen 10, Upplands Vasby, Sweden"]
[Date "2024.10.04"]
[Round "1.9"]
[White "Danchevski, Orce"]
[Black "Amin, Bassem"]
[Result "0-1"]
[TimeControl "90 minutes for 40 moves + 30 minutes for the rest of the game + 30 seconds per move from move one."]
[WhiteTitle "IM"]
[BlackTitle "GM"]
[WhiteFideId "15000311"]
[BlackFideId "10601457"]
[WhiteElo "2339"]
[BlackElo "2636"]

1. d4 {[%clk 01:30:53]} {[%emt 00:00:06]} Nf6 {[%clk 01:27:28]} {[%emt
00:03:32]} 2. Nf3 {[%clk 01:30:30]} {[%emt 00:00:52]} g6 {[%clk 01:27:45]}
{[%emt 00:00:13]} 3. Bg5 {[%clk 01:22:48]} {[%emt 00:08:11]} Bg7 {[%clk
01:27:59]} {[%emt 00:00:17]} 4. Nbd2 {[%clk 01:22:42]} {[%emt 00:00:37]} O-O
{[%clk 01:28:20]} {[%emt 00:00:10]} 5. e3 {[%clk 01:22:20]} {[%emt 00:00:51]}
d6 {[%clk 01:27:19]} {[%emt 00:01:31]} 6. Be2 {[%clk 01:22:02]} {[%emt
00:00:48]} h6 {[%clk 01:26:19]} {[%emt 00:01:31]} 7. Bh4 {[%clk 01:20:04]}
{[%emt 00:02:28]} c5 {[%clk 01:21:42]} {[%emt 00:05:07]} 8. c3 {[%clk
01:16:29]} {[%emt 00:04:05]} b6 {[%clk 01:10:23]} {[%emt 00:11:50]} 9. O-O
{[%clk 01:15:06]} {[%emt 00:01:51]} Bb7 {[%clk 01:10:44]} {[%emt 00:00:10]} 10.
a4 {[%clk 01:12:26]} {[%emt 00:03:10]} a6 {[%clk 01:11:05]} {[%emt 00:00:10]}
11. Re1 {[%clk 01:11:19]} {[%emt 00:01:36]} Nbd7 {[%clk 01:11:03]} {[%emt
00:00:33]} 12. Bf1 {[%clk 01:10:41]} {[%emt 00:01:06]} g5 {[%clk 01:03:20]}
{[%emt 00:08:14]} 13. Bg3 {[%clk 01:10:43]} {[%emt 00:00:28]} Nh5 {[%clk
01:03:43]} {[%emt 00:00:07]} 14. e4 {[%clk 01:06:13]} {[%emt 00:04:59]} cxd4
{[%clk 01:01:25]} {[%emt 00:02:49]} 15. Nxd4 {[%clk 01:03:23]} {[%emt
00:03:20]} Nxg3 {[%clk 01:01:48]} {[%emt 00:00:07]} 16. hxg3 {[%clk 01:03:42]}
{[%emt 00:00:11]} e6 {[%clk 01:02:05]} {[%emt 00:00:13]} 17. f4 {[%clk
00:50:33]} {[%emt 00:13:39]} Rc8 {[%clk 00:58:45]} {[%emt 00:03:51]} 18. N2f3
{[%clk 00:47:05]} {[%emt 00:03:56]} Nc5 {[%clk 00:53:43]} {[%emt 00:05:33]} 19.
Nd2 {[%clk 00:28:20]} {[%emt 00:19:15]} gxf4 {[%clk 00:46:17]} {[%emt
00:07:56]} 20. gxf4 {[%clk 00:28:37]} {[%emt 00:00:12]} Qh4 {[%clk 00:46:36]}
{[%emt 00:00:12]} 21. b4 {[%clk 00:13:45]} {[%emt 00:15:22]} Nd7 {[%clk
00:39:36]} {[%emt 00:07:29]} 22. Qf3 {[%clk 00:14:02]} {[%emt 00:00:13]} Rc7
{[%clk 00:38:15]} {[%emt 00:01:53]} 23. g3 {[%clk 00:11:14]} {[%emt 00:03:17]}
Qe7 {[%clk 00:38:12]} {[%emt 00:00:32]} 24. Qe3 {[%clk 00:10:33]} {[%emt
00:01:12]} Rfc8 {[%clk 00:38:18]} {[%emt 00:00:24]} 25. Ra3 {[%clk 00:10:53]}
{[%emt 00:00:10]} Nf6 {[%clk 00:25:49]} {[%emt 00:12:59]} 26. Be2 {[%clk
00:11:06]} {[%emt 00:00:17]} a5 {[%clk 00:25:45]} {[%emt 00:00:34]} 27. Kf2
{[%clk 00:06:32]} {[%emt 00:05:03]} Ba6 {[%clk 00:14:07]} {[%emt 00:12:09]} 28.
Bf3 {[%clk 00:05:56]} {[%emt 00:01:05]} Nd7 {[%clk 00:14:22]} {[%emt 00:00:16]}
29. Rb3 {[%clk 00:05:36]} {[%emt 00:00:50]} Qf6 {[%clk 00:14:17]} {[%emt
00:00:35]} 30. Kg2 {[%clk 00:00:52]} {[%emt 00:05:15]} axb4 {[%clk 00:14:31]}
{[%emt 00:00:16]} 31. Nb5 {[%clk 00:00:32]} {[%emt 00:00:49]} Bxb5 {[%clk
00:14:40]} {[%emt 00:00:21]} 0-1

[Event "The Elitserien 2024/25: round 1 - 3"]
[Site "Scandic Infra City, Kanalvagen 10, Upplands Vasby, Sweden"]
[Date "2024.10.04"]
[Round "1.10"]
[White "Grigorov, Grigor"]
[Black "Gdanski, Jacek"]
[Result "1/2-1/2"]
[TimeControl "90 minutes for 40 moves + 30 minutes for the rest of the game + 30 seconds per move from move one."]
[WhiteTitle "GM"]
[BlackTitle "GM"]
[WhiteFideId "2907313"]
[BlackFideId "1100106"]
[WhiteElo "2514"]
[BlackElo "2482"]

1. d4 {[%clk 01:30:56]} {[%emt 00:00:04]} e6 {[%clk 01:30:52]} {[%emt
00:00:09]} 2. Nf3 {[%clk 01:29:34]} {[%emt 00:01:53]} d5 {[%clk 01:30:33]}
{[%emt 00:00:49]} 3. c4 {[%clk 01:29:50]} {[%emt 00:00:14]} c6 {[%clk
01:30:45]} {[%emt 00:00:18]} 4. g3 {[%clk 01:28:26]} {[%emt 00:01:53]} dxc4
{[%clk 01:30:42]} {[%emt 00:00:33]} 5. Bg2 {[%clk 01:28:48]} {[%emt 00:00:09]}
Nd7 {[%clk 01:27:53]} {[%emt 00:03:18]} 6. a4 {[%clk 01:19:41]} {[%emt
00:09:36]} Bb4+ {[%clk 01:13:45]} {[%emt 00:14:38]} 7. Bd2 {[%clk 01:18:28]}
{[%emt 00:01:44]} a5 {[%clk 01:12:09]} {[%emt 00:02:17]} 8. Qc2 {[%clk
01:16:31]} {[%emt 00:02:16]} Nb6 {[%clk 01:06:12]} {[%emt 00:06:27]} 9. O-O
{[%clk 01:15:34]} {[%emt 00:01:27]} Nf6 {[%clk 01:05:10]} {[%emt 00:01:31]} 10.
Bxb4 {[%clk 00:53:28]} {[%emt 00:22:36]} axb4 {[%clk 01:05:32]} {[%emt
00:00:08]} 11. Nbd2 {[%clk 00:53:28]} {[%emt 00:00:31]} c3 {[%clk 00:55:55]}
{[%emt 00:10:07]} 12. bxc3 {[%clk 00:51:02]} {[%emt 00:02:57]} bxc3 {[%clk
00:55:45]} {[%emt 00:00:39]} 13. Nb1 {[%clk 00:47:53]} {[%emt 00:03:38]} O-O
{[%clk 00:48:32]} {[%emt 00:07:43]} 14. Nxc3 {[%clk 00:48:12]} {[%emt
00:00:11]} Nbd5 {[%clk 00:46:30]} {[%emt 00:02:32]} 15. Ne5 {[%clk 00:45:31]}
{[%emt 00:03:11]} Nd7 {[%clk 00:34:30]} {[%emt 00:12:30]} 16. Nd3 {[%clk
00:44:03]} {[%emt 00:01:58]} b6 {[%clk 00:32:49]} {[%emt 00:02:12]} 17. Ne4
{[%clk 00:31:59]} {[%emt 00:12:34]} Ba6 {[%clk 00:27:31]} {[%emt 00:05:49]} 18.
Qxc6 {[%clk 00:28:57]} {[%emt 00:03:31]} Rc8 {[%clk 00:26:14]} {[%emt
00:01:46]} 19. Qd6 {[%clk 00:29:17]} {[%emt 00:00:11]} Bxd3 {[%clk 00:13:35]}
{[%emt 00:13:10]} 20. exd3 {[%clk 00:29:40]} {[%emt 00:00:06]} Qc7 {[%clk
00:13:53]} {[%emt 00:00:12]} 21. Qa3 {[%clk 00:27:48]} {[%emt 00:02:22]} Qa7
{[%clk 00:13:51]} {[%emt 00:00:32]} 22. Rfc1 {[%clk 00:27:25]} {[%emt
00:00:53]} Rxc1+ {[%clk 00:09:26]} {[%emt 00:04:56]} 23. Qxc1 {[%clk 00:25:30]}
{[%emt 00:02:23]} Qa6 {[%clk 00:06:33]} {[%emt 00:03:24]} 24. Qc4 {[%clk
00:21:41]} {[%emt 00:04:17]} Ra8 {[%clk 00:04:25]} {[%emt 00:02:39]} 25. Nc3
{[%clk 00:17:47]} {[%emt 00:04:25]} N7f6 {[%clk 00:02:37]} {[%emt 00:02:18]} 26.
Nxd5 {[%clk 00:17:58]} {[%emt 00:00:19]} exd5 {[%clk 00:02:17]} {[%emt
00:00:49]} 27. Bxd5 {[%clk 00:15:15]} {[%emt 00:03:14]} b5 {[%clk 00:02:18]}
{[%emt 00:00:30]} 28. Bxf7+ {[%clk 00:15:21]} {[%emt 00:00:23]} Kf8 {[%clk
00:02:46]} {[%emt 00:00:02]} 29. Qa2 {[%clk 00:15:07]} {[%emt 00:00:43]} Qxa4
{[%clk 00:02:03]} {[%emt 00:01:14]} 30. Bb3 {[%clk 00:14:41]} {[%emt 00:00:55]}
Qxa2 {[%clk 00:02:28]} {[%emt 00:00:07]} 31. Rxa2 {[%clk 00:15:06]} {[%emt
00:00:04]} Rxa2 {[%clk 00:02:09]} {[%emt 00:00:49]} 32. Bxa2 {[%clk 00:15:29]}
{[%emt 00:00:07]} Ke7 {[%clk 00:02:21]} {[%emt 00:00:19]} 33. Kf1 {[%clk
00:15:48]} {[%emt 00:00:10]} Kd6 {[%clk 00:02:10]} {[%emt 00:00:41]} 34. Ke2
{[%clk 00:16:12]} {[%emt 00:00:05]} g5 {[%clk 00:01:17]} {[%emt 00:01:24]} 35.
f3 {[%clk 00:14:52]} {[%emt 00:01:50]} h6 {[%clk 00:01:11]} {[%emt 00:00:36]}
36. Kd2 {[%clk 00:15:09]} {[%emt 00:00:13]} Nd7 {[%clk 00:01:15]} {[%emt
00:00:27]} 37. Kc3 {[%clk 00:15:09]} {[%emt 00:00:29]} Nb8 {[%clk 00:01:42]}
{[%emt 00:00:03]} 38. f4 {[%clk 00:12:39]} {[%emt 00:03:00]} gxf4 {[%clk
00:00:40]} {[%emt 00:01:32]} 39. gxf4 {[%clk 00:13:03]} {[%emt 00:00:06]} Nc6
{[%clk 00:00:50]} {[%emt 00:00:21]} 40. f5 {[%clk 00:13:00]} {[%emt 00:00:33]}
Ke7 {[%clk 00:01:02]} {[%emt 00:00:18]} 41. d5 {[%clk 00:03:41]} {[%emt
00:09:48]} Ne5 {[%clk 00:00:45]} {[%emt 00:00:48]} 42. Kb4 {[%clk 00:03:10]}
{[%emt 00:01:00]} Nxd3+ {[%clk 00:15:56]} {[%emt 00:15:20]} 43. Kxb5 {[%clk
00:33:32]} {[%emt 00:00:07]} Kd6 {[%clk 00:16:20]} {[%emt 00:00:05]} 44. Kc4
{[%clk 00:24:20]} {[%emt 00:09:41]} Ne5+ {[%clk 00:13:40]} {[%emt 00:03:11]} 45.
Kd4 {[%clk 00:24:27]} {[%emt 00:00:23]} Ng4 {[%clk 00:13:08]} {[%emt 00:01:03]}
46. Ke4 {[%clk 00:24:36]} {[%emt 00:00:21]} Nf6+ {[%clk 00:13:24]} {[%emt
00:00:15]} 47. Kf4 {[%clk 00:24:58]} {[%emt 00:00:08]} Nh5+ {[%clk 00:13:45]}
{[%emt 00:00:09]} 48. Kg4 {[%clk 00:25:16]} {[%emt 00:00:11]} Nf6+ {[%clk
00:14:10]} {[%emt 00:00:05]} 49. Kf4 {[%clk 00:24:55]} {[%emt 00:00:18]}
1/2-1/2

[Event "The Elitserien 2024/25: round 1 - 3"]
[Site "Scandic Infra City, Kanalvagen 10, Upplands Vasby, Sweden"]
[Date "2024.10.04"]
[Round "1.11"]
[White "Malesevic, Nedeljko"]
[Black "Hellers, Ferdinand"]
[Result "0-1"]
[TimeControl "90 minutes for 40 moves + 30 minutes for the rest of the game + 30 seconds per move from move one."]
[WhiteTitle "FM"]
[BlackTitle "GM"]
[WhiteFideId "1703447"]
[BlackFideId "1700022"]
[WhiteElo "2230"]
[BlackElo "2589"]

1. d4 {[%clk 01:30:57]} {[%emt 00:00:02]} Nf6 {[%clk 01:30:05]} {[%emt
00:00:55]} 2. c4 {[%clk 01:31:10]} {[%emt 00:00:17]} g6 {[%clk 01:29:01]}
{[%emt 00:01:34]} 3. Nc3 {[%clk 01:31:21]} {[%emt 00:00:20]} Bg7 {[%clk
01:29:02]} {[%emt 00:00:27]} 4. e4 {[%clk 01:31:37]} {[%emt 00:00:14]} d6
{[%clk 01:29:23]} {[%emt 00:00:09]} 5. Bd3 {[%clk 01:31:50]} {[%emt 00:00:18]}
O-O {[%clk 01:29:18]} {[%emt 00:00:35]} 6. Nge2 {[%clk 01:32:02]} {[%emt
00:00:18]} c5 {[%clk 01:20:31]} {[%emt 00:09:17]} 7. d5 {[%clk 01:31:52]}
{[%emt 00:00:40]} e6 {[%clk 01:20:17]} {[%emt 00:00:43]} 8. dxe6 {[%clk
01:28:32]} {[%emt 00:03:51]} fxe6 {[%clk 01:19:13]} {[%emt 00:01:33]} 9. O-O
{[%clk 01:28:47]} {[%emt 00:00:16]} Nc6 {[%clk 01:18:40]} {[%emt 00:01:03]} 10.
f4 {[%clk 01:28:41]} {[%emt 00:00:36]} b6 {[%clk 01:11:47]} {[%emt 00:07:24]}
11. h3 {[%clk 01:25:09]} {[%emt 00:04:02]} Qe7 {[%clk 01:10:32]} {[%emt
00:01:44]} 12. Be3 {[%clk 01:19:35]} {[%emt 00:06:04]} Bb7 {[%clk 01:05:54]}
{[%emt 00:05:08]} 13. Qd2 {[%clk 01:12:17]} {[%emt 00:07:48]} Nb4 {[%clk
01:02:50]} {[%emt 00:03:35]} 14. Rae1 {[%clk 00:47:03]} {[%emt 00:25:44]} Rad8
{[%clk 00:53:25]} {[%emt 00:09:55]} 15. f5 {[%clk 00:41:30]} {[%emt 00:06:04]}
exf5 {[%clk 00:39:11]} {[%emt 00:14:43]} 16. exf5 {[%clk 00:39:35]} {[%emt
00:02:25]} d5 {[%clk 00:39:11]} {[%emt 00:00:31]} 17. fxg6 {[%clk 00:24:41]}
{[%emt 00:15:24]} Nxd3 {[%clk 00:34:50]} {[%emt 00:04:50]} 18. Qxd3 {[%clk
00:18:39]} {[%emt 00:06:32]} d4 {[%clk 00:34:27]} {[%emt 00:00:51]} 19. Bg5
{[%clk 00:12:22]} {[%emt 00:06:49]} dxc3 {[%clk 00:26:52]} {[%emt 00:08:05]} 20.
gxh7+ {[%clk 00:11:48]} {[%emt 00:01:04]} Nxh7 {[%clk 00:15:12]} {[%emt
00:12:10]} 21. Rxf8+ {[%clk 00:09:06]} {[%emt 00:03:13]} Nxf8 {[%clk 00:15:17]}
{[%emt 00:00:25]} 22. Qg3 {[%clk 00:06:10]} {[%emt 00:03:25]} Qd6 {[%clk
00:09:39]} {[%emt 00:06:08]} 23. Bxd8 {[%clk 00:05:58]} {[%emt 00:00:43]} Qxg3
{[%clk 00:09:58]} {[%emt 00:00:11]} 24. Nxg3 {[%clk 00:06:12]} {[%emt
00:00:15]} cxb2 {[%clk 00:10:22]} {[%emt 00:00:06]} 25. Kf2 {[%clk 00:02:00]}
{[%emt 00:04:42]} Ba6 {[%clk 00:09:38]} {[%emt 00:01:13]} 26. Ne4 {[%clk
00:01:54]} {[%emt 00:00:37]} Bxc4 {[%clk 00:09:11]} {[%emt 00:00:56]} 27. Bf6
{[%clk 00:02:03]} {[%emt 00:00:22]} Bxa2 {[%clk 00:08:53]} {[%emt 00:00:48]} 28.
Bxg7 {[%clk 00:01:30]} {[%emt 00:01:03]} b1=Q {[%clk 00:08:25]} {[%emt
00:00:58]} 29. Rxb1 {[%clk 00:01:48]} {[%emt 00:00:12]} Bxb1 {[%clk 00:08:47]}
{[%emt 00:00:07]} 30. Bxf8 {[%clk 00:01:38]} {[%emt 00:00:41]} Kxf8 {[%clk
00:09:02]} {[%emt 00:00:14]} 31. Nc3 {[%clk 00:02:00]} {[%emt 00:00:08]} Bc2
{[%clk 00:05:32]} {[%emt 00:03:59]} 32. Ke3 {[%clk 00:01:47]} {[%emt 00:00:44]}
Bb3 {[%clk 00:04:30]} {[%emt 00:01:32]} 33. Kd3 {[%clk 00:01:05]} {[%emt
00:01:13]} a5 {[%clk 00:04:17]} {[%emt 00:00:43]} 34. Nb5 {[%clk 00:00:50]}
{[%emt 00:00:45]} Ke7 {[%clk 00:03:53]} {[%emt 00:00:54]} 35. g4 {[%clk
00:00:43]} {[%emt 00:00:38]} Be6 {[%clk 00:03:25]} {[%emt 00:00:56]} 36. Nc3
{[%clk 00:00:43]} {[%emt 00:00:31]} Kd6 {[%clk 00:03:06]} {[%emt 00:00:48]} 37.
Ne4+ {[%clk 00:00:52]} {[%emt 00:00:21]} Ke5 {[%clk 00:02:21]} {[%emt
00:01:15]} 38. Nc3 {[%clk 00:00:40]} {[%emt 00:00:43]} c4+ {[%clk 00:02:02]}
{[%emt 00:00:49]} 39. Ke3 {[%clk 00:00:36]} {[%emt 00:00:33]} Bd7 {[%clk
00:02:19]} {[%emt 00:00:12]} 40. Ne2 {[%clk 00:00:41]} {[%emt 00:00:26]} b5
{[%clk 00:01:57]} {[%emt 00:00:52]} 41. Nd4 {[%clk 00:26:58]} {[%emt 00:04:13]}
b4 {[%clk 00:30:11]} {[%emt 00:02:15]} 42. g5 {[%clk 00:25:16]} {[%emt
00:02:13]} a4 {[%clk 00:23:51]} {[%emt 00:06:49]} 43. g6 {[%clk 00:16:04]}
{[%emt 00:09:43]} Kf6 {[%clk 00:23:55]} {[%emt 00:00:26]} 44. Nc2 {[%clk
00:16:08]} {[%emt 00:00:26]} b3 {[%clk 00:23:07]} {[%emt 00:01:18]} 45. Na3
{[%clk 00:16:25]} {[%emt 00:00:14]} c3 {[%clk 00:22:43]} {[%emt 00:00:53]} 46.
Kd3 {[%clk 00:16:38]} {[%emt 00:00:17]} c2 {[%clk 00:22:48]} {[%emt 00:00:25]}
47. Kd2 {[%clk 00:17:01]} {[%emt 00:00:07]} Bf5 {[%clk 00:23:07]} {[%emt
00:00:11]} 48. Kc1 {[%clk 00:15:43]} {[%emt 00:01:49]} Bxg6 {[%clk 00:22:22]}
{[%emt 00:01:14]} 0-1

[Event "The Elitserien 2024/25: round 1 - 3"]
[Site "Scandic Infra City, Kanalvagen 10, Upplands Vasby, Sweden"]
[Date "2024.10.04"]
[Round "1.12"]
[White "Wedberg, Tom"]
[Black "Lukez, Giamfranko"]
[Result "1-0"]
[TimeControl "90 minutes for 40 moves + 30 minutes for the rest of the game + 30 seconds per move from move one."]
[WhiteTitle "GM"]
[BlackTitle "FM"]
[WhiteFideId "1700073"]
[BlackFideId "1700626"]
[WhiteElo "2373"]
[BlackElo "2281"]

1. e4 {[%clk 01:30:56]} {[%emt 00:00:03]} g6 {[%clk 01:30:29]} {[%emt
00:00:31]} 2. d4 {[%clk 01:31:15]} {[%emt 00:00:11]} Bg7 {[%clk 01:30:54]}
{[%emt 00:00:05]} 3. Nc3 {[%clk 01:30:25]} {[%emt 00:01:21]} d6 {[%clk
01:31:14]} {[%emt 00:00:10]} 4. Nf3 {[%clk 01:29:58]} {[%emt 00:00:57]} Nf6
{[%clk 01:31:26]} {[%emt 00:00:17]} 5. Be2 {[%clk 01:29:55]} {[%emt 00:00:34]}
O-O {[%clk 01:31:07]} {[%emt 00:00:49]} 6. O-O {[%clk 01:29:08]} {[%emt
00:01:17]} c5 {[%clk 01:31:15]} {[%emt 00:00:21]} 7. d5 {[%clk 01:28:29]}
{[%emt 00:01:09]} e6 {[%clk 01:31:23]} {[%emt 00:00:21]} 8. h3 {[%clk
01:15:55]} {[%emt 00:13:05]} exd5 {[%clk 01:30:51]} {[%emt 00:01:01]} 9. exd5
{[%clk 01:16:16]} {[%emt 00:00:10]} Re8 {[%clk 01:31:10]} {[%emt 00:00:11]} 10.
Re1 {[%clk 01:14:06]} {[%emt 00:02:41]} Ne4 {[%clk 01:22:42]} {[%emt 00:08:58]}
11. Nxe4 {[%clk 01:04:26]} {[%emt 00:10:10]} Rxe4 {[%clk 01:22:50]} {[%emt
00:00:21]} 12. Nd2 {[%clk 01:00:32]} {[%emt 00:04:24]} Re8 {[%clk 01:18:33]}
{[%emt 00:04:48]} 13. a4 {[%clk 00:56:49]} {[%emt 00:04:13]} Nd7 {[%clk
01:08:58]} {[%emt 00:10:04]} 14. a5 {[%clk 00:49:29]} {[%emt 00:07:51]} Rb8
{[%clk 00:58:30]} {[%emt 00:10:57]} 15. c3 {[%clk 00:46:22]} {[%emt 00:03:38]}
b5 {[%clk 00:49:35]} {[%emt 00:09:24]} 16. axb6 {[%clk 00:46:00]} {[%emt
00:00:52]} axb6 {[%clk 00:49:57]} {[%emt 00:00:08]} 17. Nc4 {[%clk 00:40:20]}
{[%emt 00:06:11]} Ne5 {[%clk 00:40:51]} {[%emt 00:09:36]} 18. Na3 {[%clk
00:33:22]} {[%emt 00:07:27]} Ra8 {[%clk 00:32:46]} {[%emt 00:08:35]} 19. Bf4
{[%clk 00:33:02]} {[%emt 00:00:51]} Bd7 {[%clk 00:21:53]} {[%emt 00:11:22]} 20.
Qd2 {[%clk 00:27:46]} {[%emt 00:05:46]} Qb8 {[%clk 00:15:40]} {[%emt 00:06:43]}
21. Nb5 {[%clk 00:26:30]} {[%emt 00:01:46]} Rxa1 {[%clk 00:14:49]} {[%emt
00:01:22]} 22. Rxa1 {[%clk 00:26:34]} {[%emt 00:00:25]} f5 {[%clk 00:08:08]}
{[%emt 00:07:10]} 23. Bf1 {[%clk 00:15:54]} {[%emt 00:11:11]} Nf7 {[%clk
00:06:20]} {[%emt 00:02:18]} 24. Ra6 {[%clk 00:11:57]} {[%emt 00:04:27]} Re7
{[%clk 00:04:24]} {[%emt 00:02:27]} 25. Na7 {[%clk 00:05:12]} {[%emt 00:07:15]}
Qb7 {[%clk 00:02:57]} {[%emt 00:01:56]} 26. Nc6 {[%clk 00:05:22]} {[%emt
00:00:20]} Bxc6 {[%clk 00:03:12]} {[%emt 00:00:15]} 27. dxc6 {[%clk 00:05:47]}
{[%emt 00:00:05]} Qxc6 {[%clk 00:03:38]} {[%emt 00:00:04]} 28. Bc4 {[%clk
00:06:04]} {[%emt 00:00:13]} Be5 {[%clk 00:03:38]} {[%emt 00:00:30]} 29. Bh6
{[%clk 00:05:42]} {[%emt 00:00:52]} Bg7 {[%clk 00:02:26]} {[%emt 00:01:43]} 30.
Bg5 {[%clk 00:05:07]} {[%emt 00:01:04]} Rc7 {[%clk 00:01:29]} {[%emt 00:01:27]}
31. Bd5 {[%clk 00:04:41]} {[%emt 00:00:56]} Qd7 {[%clk 00:01:40]} {[%emt
00:00:19]} 32. Rxb6 {[%clk 00:04:06]} {[%emt 00:01:05]} Bf8 {[%clk 00:01:13]}
{[%emt 00:00:57]} 33. Bf6 {[%clk 00:03:32]} {[%emt 00:01:04]} h5 {[%clk
00:01:39]} {[%emt 00:00:04]} 34. Qe3 {[%clk 00:02:58]} {[%emt 00:01:04]} Kh7
{[%clk 00:01:36]} {[%emt 00:00:33]} 35. Rb8 {[%clk 00:02:19]} {[%emt 00:01:09]}
Bg7 {[%clk 00:01:45]} {[%emt 00:00:22]} 36. Bxg7 {[%clk 00:02:03]} {[%emt
00:00:46]} Kxg7 {[%clk 00:02:09]} {[%emt 00:00:06]} 37. Re8 {[%clk 00:02:22]}
{[%emt 00:00:10]} Ne5 {[%clk 00:01:15]} {[%emt 00:01:25]} 38. Rg8+ {[%clk
00:02:35]} {[%emt 00:00:16]} Kh7 {[%clk 00:01:40]} {[%emt 00:00:06]} 39. Rh8+
{[%clk 00:02:53]} {[%emt 00:00:11]} 1-0

[Event "The Elitserien 2024/25: round 1 - 3"]
[Site "Scandic Infra City, Kanalvagen 10, Upplands Vasby, Sweden"]
[Date "2024.10.04"]
[Round "1.13"]
[White "Vernersson, Per"]
[Black "Cramling, Pia"]
[Result "1/2-1/2"]
[TimeControl "90 minutes for 40 moves + 30 minutes for the rest of the game + 30 seconds per move from move one."]
[BlackTitle "GM"]
[WhiteFideId "1700863"]
[BlackFideId "1700030"]
[WhiteElo "2256"]
[BlackElo "2425"]

1. d4 {[%clk 01:30:51]} {[%emt 00:00:09]} Nf6 {[%clk 01:30:16]} {[%emt
00:00:44]} 2. c4 {[%clk 01:31:08]} {[%emt 00:00:13]} e6 {[%clk 01:30:33]}
{[%emt 00:00:13]} 3. Nf3 {[%clk 01:31:20]} {[%emt 00:00:18]} d5 {[%clk
01:29:47]} {[%emt 00:01:15]} 4. Nc3 {[%clk 01:31:28]} {[%emt 00:00:22]} c6
{[%clk 01:28:40]} {[%emt 00:01:38]} 5. e3 {[%clk 01:29:06]} {[%emt 00:02:52]}
Nbd7 {[%clk 01:28:12]} {[%emt 00:00:57]} 6. Qc2 {[%clk 01:29:11]} {[%emt
00:00:25]} Bd6 {[%clk 01:28:10]} {[%emt 00:00:32]} 7. Be2 {[%clk 01:29:24]}
{[%emt 00:00:17]} dxc4 {[%clk 01:24:45]} {[%emt 00:03:56]} 8. a4 {[%clk
01:29:29]} {[%emt 00:00:26]} a5 {[%clk 01:23:38]} {[%emt 00:01:36]} 9. Bxc4
{[%clk 01:29:18]} {[%emt 00:00:40]} O-O {[%clk 01:23:42]} {[%emt 00:00:27]} 10.
O-O {[%clk 01:28:11]} {[%emt 00:01:37]} Qe7 {[%clk 01:22:23]} {[%emt 00:01:49]}
11. Ne4 {[%clk 01:22:20]} {[%emt 00:06:21]} Nxe4 {[%clk 01:16:07]} {[%emt
00:06:45]} 12. Qxe4 {[%clk 01:22:36]} {[%emt 00:00:15]} e5 {[%clk 01:06:32]}
{[%emt 00:10:05]} 13. dxe5 {[%clk 01:16:00]} {[%emt 00:07:06]} Nxe5 {[%clk
01:06:50]} {[%emt 00:00:11]} 14. Nxe5 {[%clk 01:14:55]} {[%emt 00:01:37]} Qxe5
{[%clk 01:06:41]} {[%emt 00:00:39]} 15. Qxe5 {[%clk 01:12:56]} {[%emt
00:02:28]} Bxe5 {[%clk 01:07:09]} {[%emt 00:00:02]} 16. Rd1 {[%clk 01:06:17]}
{[%emt 00:07:09]} Re8 {[%clk 00:55:50]} {[%emt 00:11:47]} 17. e4 {[%clk
01:02:42]} {[%emt 00:04:06]} Be6 {[%clk 00:37:33]} {[%emt 00:18:47]} 18. Bxe6
{[%clk 01:01:43]} {[%emt 00:01:30]} Rxe6 {[%clk 00:36:47]} {[%emt 00:01:16]} 19.
Ra3 {[%clk 00:55:51]} {[%emt 00:06:22]} Rd6 {[%clk 00:27:34]} {[%emt 00:09:42]}
20. Rxd6 {[%clk 00:52:34]} {[%emt 00:03:49]} Bxd6 {[%clk 00:28:03]} 21. Rd3
{[%clk 00:52:47]} {[%emt 00:00:15]} Bb4 {[%clk 00:27:52]} {[%emt 00:00:42]} 22.
Kf1 {[%clk 00:49:58]} {[%emt 00:03:18]} Re8 {[%clk 00:27:25]} {[%emt 00:00:57]}
23. Bd2 {[%clk 00:49:50]} {[%emt 00:00:38]} Bxd2 {[%clk 00:22:39]} {[%emt
00:05:17]} 24. Rxd2 {[%clk 00:50:12]} {[%emt 00:00:09]} g6 {[%clk 00:21:52]}
{[%emt 00:01:16]} 25. f3 {[%clk 00:50:25]} {[%emt 00:00:17]} Re5 {[%clk
00:19:52]} {[%emt 00:02:29]} 26. Ke2 {[%clk 00:42:05]} {[%emt 00:08:51]} Rc5
{[%clk 00:16:41]} {[%emt 00:03:40]} 27. Kd3 {[%clk 00:32:05]} {[%emt 00:10:32]}
Rc1 {[%clk 00:15:49]} {[%emt 00:01:21]} 28. b3 {[%clk 00:31:08]} {[%emt
00:01:27]} Kf8 {[%clk 00:15:47]} {[%emt 00:00:30]} 29. Rc2 {[%clk 00:27:03]}
{[%emt 00:04:37]} Rb1 {[%clk 00:15:52]} {[%emt 00:00:25]} 30. Kc4 {[%clk
00:26:48]} {[%emt 00:00:45]} Ke7 {[%clk 00:16:06]} {[%emt 00:00:15]} 31. f4
{[%clk 00:27:00]} {[%emt 00:00:18]} Ke6 {[%clk 00:12:46]} {[%emt 00:03:50]} 32.
g3 {[%clk 00:26:25]} {[%emt 00:01:07]} h5 {[%clk 00:11:00]} {[%emt 00:02:14]}
33. Rc3 {[%clk 00:23:44]} {[%emt 00:03:12]} b6 {[%clk 00:09:07]} {[%emt
00:02:23]} 34. Rd3 {[%clk 00:19:10]} {[%emt 00:05:04]} Rc1+ {[%clk 00:09:12]}
{[%emt 00:00:24]} 35. Rc3 {[%clk 00:19:16]} {[%emt 00:00:24]} Rd1 {[%clk
00:07:02]} {[%emt 00:02:39]} 36. Rd3 {[%clk 00:19:18]} {[%emt 00:00:30]} Re1
{[%clk 00:03:44]} {[%emt 00:03:46]} 37. e5 {[%clk 00:18:16]} {[%emt 00:01:34]}
Rc1+ {[%clk 00:04:07]} {[%emt 00:00:08]} 38. Kd4 {[%clk 00:16:08]} {[%emt
00:02:37]} f6 {[%clk 00:03:37]} {[%emt 00:01:00]} 39. exf6 {[%clk 00:16:04]}
{[%emt 00:00:33]} Kxf6 {[%clk 00:03:59]} {[%emt 00:00:08]} 40. Ke4 {[%clk
00:16:08]} {[%emt 00:00:26]} Ke6 {[%clk 00:04:01]} {[%emt 00:00:28]} 41. h3
{[%clk 00:15:44]} {[%emt 00:00:54]} Re1+ {[%clk 00:00:44]} {[%emt 00:03:47]} 42.
Kf3 {[%clk 00:12:36]} {[%emt 00:03:38]} Rf1+ {[%clk 00:26:48]} {[%emt
00:04:26]} 43. Ke4 {[%clk 00:41:55]} {[%emt 00:01:12]} Re1+ {[%clk 00:25:58]}
{[%emt 00:01:19]} 44. Kf3 {[%clk 00:42:19]} {[%emt 00:00:07]} Rf1+ {[%clk
00:25:23]} {[%emt 00:01:04]} 45. Ke4 {[%emt 00:00:19]} Ke5+ 1/2-1/2